[Event "Meltwater Champions Chess Tour 2022: Chessable Masters | Prelims"]
[White "Harikrishna, Pentala"]
[Black "Mamedyarov, Shakhriyar"]
[WhiteFideId "5007003"]
[BlackFideId "13401319"]
[WhiteElo "2624"]
[BlackElo "2699"]
[Result "0-1"]
[Round "12"]
[TimeControl "900+10"]
[Date "2022.05.21"]
[WhiteClock "0:00:40"]
[BlackClock "0:01:25"]

1. Nf3 {[%clk 0:15:20]}  Nf6 {[%clk 0:15:20]} 2. g3 {[%clk 0:15:25]}  g6 {[%clk 0:15:14]} 3. Bg2 {[%clk 0:15:34]}  Bg7 {[%clk 0:15:24]} 4. O-O {[%clk 0:15:42]}  O-O {[%clk 0:15:33]} 5. c4 {[%clk 0:15:44]}  c5 {[%clk 0:15:13]} 6. Nc3 {[%clk 0:15:06]}  d5 {[%clk 0:14:32]} 7. cxd5 {[%clk 0:15:14]}  Nxd5 {[%clk 0:14:42]} 8. Nxd5 {[%clk 0:15:22]}  Qxd5 {[%clk 0:14:50]} 9. d3 {[%clk 0:15:31]}  Nc6 {[%clk 0:14:57]} 10. Be3 {[%clk 0:15:39]}  Qe6 {[%clk 0:14:05]} 11. Bxc5 {[%clk 0:14:45]}  Bxb2 {[%clk 0:14:10]} 12. Rb1 {[%clk 0:14:54]}  Bf6 {[%clk 0:13:57]} 13. Qd2 {[%clk 0:13:34]}  b6 {[%clk 0:13:54]} 14. Nd4 {[%clk 0:12:11]}  Bxd4 {[%clk 0:11:56]} 15. Bxd4 {[%clk 0:12:18]}  Nxd4 {[%clk 0:11:44]} 16. Bxa8 {[%clk 0:12:27]}  Qxe2 {[%clk 0:10:57]} 17. Qxe2 {[%clk 0:08:34]}  Nxe2+ {[%clk 0:11:07]} 18. Kh1 {[%clk 0:07:51]}  Ba6 {[%clk 0:10:26]} 19. Bg2 {[%clk 0:07:44]}  Rc8 {[%clk 0:10:21]} 20. Rb3 {[%clk 0:07:20]}  Rc7 {[%clk 0:09:52]} 21. Ra3 {[%clk 0:06:32]}  Bb5 {[%clk 0:09:54]} 22. Rb3 {[%clk 0:06:04]}  Nd4 {[%clk 0:08:53]} 23. Rb4 {[%clk 0:05:48]}  e5 {[%clk 0:09:00]} 24. Rd1 {[%clk 0:05:38]}  a5 {[%clk 0:07:15]} 25. Rb2 {[%clk 0:05:26]}  a4 {[%clk 0:07:24]} 26. f4 {[%clk 0:05:05]}  a3 {[%clk 0:05:32]} 27. Rf2 {[%clk 0:04:58]}  Bd7 {[%clk 0:05:05]} 28. fxe5 {[%clk 0:04:27]}  Be6 {[%clk 0:05:13]} 29. Be4 {[%clk 0:03:33]}  Rc5 {[%clk 0:04:01]} 30. Rb1 {[%clk 0:03:20]}  b5 {[%clk 0:02:35]} 31. Kg1 {[%clk 0:02:28]}  Rxe5 {[%clk 0:02:13]} 32. Rb4 {[%clk 0:02:14]}  Nf5 {[%clk 0:02:22]} 33. Rc2 {[%clk 0:02:04]}  Ne3 {[%clk 0:01:48]} 34. Rc3 {[%clk 0:01:42]}  Kg7 {[%clk 0:01:51]} 35. Bf3 {[%clk 0:01:28]}  Rf5 {[%clk 0:01:05]} 36. Bg2 {[%clk 0:01:15]}  Bxa2 {[%clk 0:01:14]} 37. Rxa3 {[%clk 0:00:31]}  Nc2 {[%clk 0:01:21]} 38. Rxa2 {[%clk 0:00:25]}  Nxb4 {[%clk 0:01:30]} 39. Ra5 {[%clk 0:00:29]}  Nc2 {[%clk 0:01:21]} 40. Be4 {[%clk 0:00:25]}  Rc5 {[%clk 0:01:25]} 41. Kf2 {[%clk 0:00:34]}  Kf6 {[%clk 0:01:13]} 42. h4 {[%clk 0:00:41]}  h5 {[%clk 0:01:19]} 43. Ke2 {[%clk 0:00:47]}  Ke5 {[%clk 0:01:18]} 44. Ra7 {[%clk 0:00:32]}  Nd4+ {[%clk 0:01:25]} 45. Ke3 {[%clk 0:00:31]}  f5 {[%clk 0:01:29]} 46. Bg2 {[%clk 0:00:12]}  Rc2 {[%clk 0:01:12]} 47. Bf1 {[%clk 0:00:20]}  Rc1 {[%clk 0:01:01]} 48. Bg2 {[%clk 0:00:22]}  Re1+ {[%clk 0:01:03]} 49. Kf2 {[%clk 0:00:31]}  Re2+ {[%clk 0:01:12]} 50. Kf1 {[%clk 0:00:40]}  Rd2 {[%clk 0:01:17]} 51. Re7+ {[%clk 0:00:41]}  Kd6 {[%clk 0:01:10]} 52. Rg7 {[%clk 0:00:50]}  b4 {[%clk 0:01:19]} 53. Rxg6+ {[%clk 0:00:51]}  Kc5 {[%clk 0:01:26]} 54. Rg8 {[%clk 0:00:58]}  b3 {[%clk 0:01:30]} 55. Rc8+ {[%clk 0:01:07]}  Kb4 {[%clk 0:01:17]} 56. Rb8+ {[%clk 0:01:08]}  Kc3 {[%clk 0:01:20]} 57. Rc8+ {[%clk 0:01:17]}  Kxd3 {[%clk 0:01:26]} 58. Bb7 {[%clk 0:00:40]}  Rd1+ {[%clk 0:01:25]} 0-1


[Site "http://www.chessbomb.com"]

[Event "Meltwater Champions Chess Tour 2022: Chessable Masters | Prelims"]
[White "Jones, Gawain C B"]
[Black "Hansen, Eric"]
[WhiteFideId "409561"]
[BlackFideId "2606771"]
[WhiteElo "2630"]
[BlackElo "2579"]
[Result "1-0"]
[Round "12"]
[TimeControl "900+10"]
[Date "2022.05.21"]
[WhiteClock "0:00:37"]
[BlackClock "0:00:43"]

1. e4 {[%clk 0:15:20]}  e5 {[%clk 0:15:20]} 2. Nf3 {[%clk 0:15:26]}  Nf6 {[%clk 0:15:16]} 3. d4 {[%clk 0:15:31]}  Nxe4 {[%clk 0:15:17]} 4. Bd3 {[%clk 0:15:39]}  d5 {[%clk 0:15:21]} 5. Nxe5 {[%clk 0:15:47]}  Bd6 {[%clk 0:15:07]} 6. c4 {[%clk 0:14:53]}  c6 {[%clk 0:14:19]} 7. O-O {[%clk 0:14:16]}  O-O {[%clk 0:14:22]} 8. Nc3 {[%clk 0:14:18]}  Nxc3 {[%clk 0:14:20]} 9. bxc3 {[%clk 0:14:25]}  Nd7 {[%clk 0:14:16]} 10. Nxd7 {[%clk 0:12:35]}  Bxd7 {[%clk 0:12:33]} 11. cxd5 {[%clk 0:12:31]}  cxd5 {[%clk 0:12:43]} 12. Qh5 {[%clk 0:12:37]}  g6 {[%clk 0:12:53]} 13. Qxd5 {[%clk 0:11:23]}  Qc7 {[%clk 0:13:01]} 14. Bh6 {[%clk 0:10:05]}  Rfe8 {[%clk 0:13:07]} 15. Qf3 {[%clk 0:07:30]}  Qxc3 {[%clk 0:12:03]} 16. Qf6 {[%clk 0:04:52]}  Bf8 {[%clk 0:12:10]} 17. Bxf8 {[%clk 0:05:01]}  Rxf8 {[%clk 0:12:19]} 18. Be4 {[%clk 0:05:06]}  Rad8 {[%clk 0:09:37]} 19. Rac1 {[%clk 0:04:26]}  Qa5 {[%clk 0:08:13]} 20. h4 {[%clk 0:03:35]}  Rfe8 {[%clk 0:07:02]} 21. Bxb7 {[%clk 0:03:24]}  Re6 {[%clk 0:04:50]} 22. Qf4 {[%clk 0:02:14]}  Qb6 {[%clk 0:02:04]} 23. Rc7 {[%clk 0:01:32]}  Rf6 {[%clk 0:01:59]} 24. Qe5 {[%clk 0:01:37]}  Rf5 {[%clk 0:01:57]} 25. Qg3 {[%clk 0:01:03]}  Qxd4 {[%clk 0:02:03]} 26. Bf3 {[%clk 0:00:58]}  Ba4 {[%clk 0:01:37]} 27. h5 {[%clk 0:01:01]}  Kg7 {[%clk 0:01:33]} 28. Rfc1 {[%clk 0:01:06]}  Qd2 {[%clk 0:01:03]} 29. R7c4 {[%clk 0:00:51]}  Rd4 {[%clk 0:00:54]} 30. Rxd4 {[%clk 0:00:29]}  Qxd4 {[%clk 0:00:32]} 31. Qb8 {[%clk 0:00:27]}  gxh5 {[%clk 0:00:14]} 32. Qg3+ {[%clk 0:00:26]}  Kf6 {[%clk 0:00:16]} 33. Qg8 {[%clk 0:00:30]}  Rg5 {[%clk 0:00:11]} 34. Qxh7 {[%clk 0:00:25]}  Qf4 {[%clk 0:00:09]} 35. Re1 {[%clk 0:00:26]}  Rg7 {[%clk 0:00:12]} 36. Qxh5 {[%clk 0:00:30]}  Bc2 {[%clk 0:00:12]} 37. Qh8 {[%clk 0:00:19]}  Bf5 {[%clk 0:00:14]} 38. Bh5 {[%clk 0:00:18]}  Qd4 {[%clk 0:00:12]} 39. Re3 {[%clk 0:00:20]}  Qa1+ {[%clk 0:00:11]} 40. Kh2 {[%clk 0:00:29]}  Qd4 {[%clk 0:00:13]} 41. Rg3 {[%clk 0:00:25]}  Bg6 {[%clk 0:00:11]} 42. Bxg6 {[%clk 0:00:31]}  fxg6 {[%clk 0:00:14]} 43. Re3 {[%clk 0:00:24]}  Qd6+ {[%clk 0:00:16]} 44. g3 {[%clk 0:00:30]}  g5 {[%clk 0:00:13]} 45. Qh6+ {[%clk 0:00:35]}  Rg6 {[%clk 0:00:21]} 46. Rf3+ {[%clk 0:00:36]}  Ke7 {[%clk 0:00:16]} 47. Qh7+ {[%clk 0:00:44]}  Kd8 {[%clk 0:00:14]} 48. Qh8+ {[%clk 0:00:27]}  Kc7 {[%clk 0:00:15]} 49. Rf7+ {[%clk 0:00:28]}  Kb6 {[%clk 0:00:11]} 50. Qb2+ {[%clk 0:00:36]}  Kc5 {[%clk 0:00:12]} 51. Qc2+ {[%clk 0:00:23]}  Kb6 {[%clk 0:00:19]} 52. Qb3+ {[%clk 0:00:25]}  Kc5 {[%clk 0:00:28]} 53. Rf5+ {[%clk 0:00:29]}  Kc6 {[%clk 0:00:37]} 54. Qc4+ {[%clk 0:00:30]}  Kd7 {[%clk 0:00:43]} 55. Rd5 {[%clk 0:00:37]} 1-0


[Site "http://www.chessbomb.com"]

[Event "Meltwater Champions Chess Tour 2022: Chessable Masters | Prelims"]
[White "Anton Guijarro, David"]
[Black "Ding, Liren"]
[WhiteFideId "2285525"]
[BlackFideId "8603677"]
[WhiteElo "2633"]
[BlackElo "2836"]
[Result "1/2-1/2"]
[Round "12"]
[TimeControl "900+10"]
[Date "2022.05.21"]
[WhiteClock "0:03:27"]
[BlackClock "0:08:08"]

1. e4 {[%clk 0:15:20]}  c5 {[%clk 0:15:20]} 2. Nf3 {[%clk 0:15:27]}  d6 {[%clk 0:15:29]} 3. c3 {[%clk 0:15:24]}  Nf6 {[%clk 0:15:38]} 4. Be2 {[%clk 0:15:33]}  g6 {[%clk 0:15:35]} 5. O-O {[%clk 0:15:35]}  Bg7 {[%clk 0:15:44]} 6. Bb5+ {[%clk 0:15:42]}  Nc6 {[%clk 0:15:48]} 7. d4 {[%clk 0:15:48]}  cxd4 {[%clk 0:15:10]} 8. cxd4 {[%clk 0:15:53]}  O-O {[%clk 0:15:20]} 9. d5 {[%clk 0:14:29]}  Na5 {[%clk 0:15:25]} 10. Bd3 {[%clk 0:13:20]}  Bg4 {[%clk 0:14:41]} 11. Nbd2 {[%clk 0:12:57]}  Nd7 {[%clk 0:14:50]} 12. Be2 {[%clk 0:10:53]}  Rc8 {[%clk 0:14:52]} 13. Rb1 {[%clk 0:10:31]}  Nb6 {[%clk 0:10:18]} 14. b3 {[%clk 0:08:18]}  e6 {[%clk 0:10:24]} 15. h3 {[%clk 0:06:21]}  Bxf3 {[%clk 0:10:33]} 16. Bxf3 {[%clk 0:06:30]}  Re8 {[%clk 0:10:16]} 17. dxe6 {[%clk 0:06:06]}  fxe6 {[%clk 0:10:24]} 18. Be2 {[%clk 0:05:32]}  Nc6 {[%clk 0:10:18]} 19. Nf3 {[%clk 0:05:30]}  d5 {[%clk 0:10:13]} 20. exd5 {[%clk 0:04:45]}  Nxd5 {[%clk 0:10:22]} 21. Bd2 {[%clk 0:04:48]}  Nc3 {[%clk 0:10:31]} 22. Bxc3 {[%clk 0:04:56]}  Bxc3 {[%clk 0:10:39]} 23. Bc4 {[%clk 0:04:48]}  a6 {[%clk 0:09:21]} 24. Qxd8 {[%clk 0:04:23]}  Rcxd8 {[%clk 0:09:10]} 25. Rfd1 {[%clk 0:03:50]}  Nd4 {[%clk 0:07:43]} 26. Rd3 {[%clk 0:03:22]}  Nxf3+ {[%clk 0:07:21]} 27. Rxf3 {[%clk 0:03:31]}  Bd4 {[%clk 0:07:31]} 28. Re1 {[%clk 0:03:35]}  Rd6 {[%clk 0:07:40]} 29. a4 {[%clk 0:03:21]}  Kg7 {[%clk 0:07:47]} 30. g3 {[%clk 0:03:13]}  Re7 {[%clk 0:07:56]} 31. Kg2 {[%clk 0:03:12]}  e5 {[%clk 0:08:05]} 32. Re2 {[%clk 0:03:04]}  e4 {[%clk 0:07:33]} 33. Rf4 {[%clk 0:03:08]}  Rf6 {[%clk 0:07:37]} 34. Rxf6 {[%clk 0:03:03]}  Kxf6 {[%clk 0:07:47]} 35. Bd5 {[%clk 0:03:06]}  e3 {[%clk 0:07:26]} 36. fxe3 {[%clk 0:03:06]}  Rxe3 {[%clk 0:07:36]} 37. Rxe3 {[%clk 0:03:09]}  Bxe3 {[%clk 0:07:46]} 38. Bxb7 {[%clk 0:03:06]}  a5 {[%clk 0:07:55]} 39. Kf3 {[%clk 0:03:13]}  Bc5 {[%clk 0:08:03]} 40. Ba6 {[%clk 0:03:19]}  h5 {[%clk 0:08:08]} 41. h4 {[%clk 0:03:27]} 1/2-1/2


[Site "http://www.chessbomb.com"]

[Event "Meltwater Champions Chess Tour 2022: Chessable Masters | Prelims"]
[White "Ding, Liren"]
[Black "Carlsen, Magnus"]
[WhiteFideId "8603677"]
[BlackFideId "1503014"]
[WhiteElo "2836"]
[BlackElo "2847"]
[Result "1/2-1/2"]
[Round "13"]
[TimeControl "900+10"]
[Date "2022.05.22"]
[WhiteClock "0:02:02"]
[BlackClock "0:14:20"]

1. c4 {[%clk 0:15:20]}  g6 {[%clk 0:15:20]} 2. d4 {[%clk 0:15:17]}  Nf6 {[%clk 0:15:27]} 3. Nf3 {[%clk 0:15:18]}  Bg7 {[%clk 0:15:35]} 4. e3 {[%clk 0:15:28]}  O-O {[%clk 0:15:36]} 5. Be2 {[%clk 0:15:37]}  b6 {[%clk 0:15:22]} 6. O-O {[%clk 0:15:42]}  Bb7 {[%clk 0:15:31]} 7. Qc2 {[%clk 0:15:51]}  e6 {[%clk 0:14:56]} 8. b4 {[%clk 0:15:58]}  a5 {[%clk 0:14:46]} 9. b5 {[%clk 0:15:59]}  d6 {[%clk 0:14:55]} 10. Nc3 {[%clk 0:15:57]}  Nbd7 {[%clk 0:15:03]} 11. Ba3 {[%clk 0:13:32]}  Re8 {[%clk 0:15:10]} 12. Rad1 {[%clk 0:13:41]}  Qe7 {[%clk 0:13:35]} 13. Rfe1 {[%clk 0:13:19]}  e5 {[%clk 0:12:52]} 14. dxe5 {[%clk 0:09:58]}  Nxe5 {[%clk 0:13:00]} 15. Nd5 {[%clk 0:08:53]}  Bxd5 {[%clk 0:13:03]} 16. cxd5 {[%clk 0:09:03]}  Nxf3+ {[%clk 0:13:12]} 17. Bxf3 {[%clk 0:09:12]}  Qd8 {[%clk 0:13:11]} 18. h4 {[%clk 0:08:35]}  Nd7 {[%clk 0:13:00]} 19. h5 {[%clk 0:08:33]}  Nc5 {[%clk 0:13:08]} 20. g3 {[%clk 0:08:31]}  Qf6 {[%clk 0:13:16]} 21. Kg2 {[%clk 0:08:35]}  Qc3 {[%clk 0:13:25]} 22. Qxc3 {[%clk 0:08:33]}  Bxc3 {[%clk 0:13:35]} 23. Rh1 {[%clk 0:08:44]}  Kg7 {[%clk 0:13:39]} 24. Rc1 {[%clk 0:08:33]}  Be5 {[%clk 0:13:42]} 25. h6+ {[%clk 0:08:17]}  Kf8 {[%clk 0:13:49]} 26. Rc4 {[%clk 0:08:18]}  Re7 {[%clk 0:13:54]} 27. Bc1 {[%clk 0:08:16]}  Rae8 {[%clk 0:14:00]} 28. e4 {[%clk 0:08:00]}  Bf6 {[%clk 0:14:08]} 29. Be3 {[%clk 0:07:56]}  Kg8 {[%clk 0:14:11]} 30. Rd1 {[%clk 0:07:47]}  Kf8 {[%clk 0:14:18]} 31. Kh3 {[%clk 0:07:19]}  Kg8 {[%clk 0:14:22]} 32. Bg2 {[%clk 0:06:41]}  Kf8 {[%clk 0:14:30]} 33. Bf3 {[%clk 0:05:54]}  Kg8 {[%clk 0:14:35]} 34. Kg2 {[%clk 0:05:39]}  Kf8 {[%clk 0:14:44]} 35. Kf1 {[%clk 0:05:48]}  Kg8 {[%clk 0:14:50]} 36. Bg2 {[%clk 0:05:51]}  Kf8 {[%clk 0:14:57]} 37. f3 {[%clk 0:05:48]}  Kg8 {[%clk 0:14:47]} 38. Bh3 {[%clk 0:05:56]}  Kf8 {[%clk 0:14:55]} 39. Kg2 {[%clk 0:05:59]}  Kg8 {[%clk 0:14:54]} 40. Kf2 {[%clk 0:05:35]}  Kf8 {[%clk 0:15:02]} 41. Bf1 {[%clk 0:05:40]}  Kg8 {[%clk 0:15:10]} 42. Bd3 {[%clk 0:04:26]}  Bh8 {[%clk 0:14:48]} 43. Bc2 {[%clk 0:04:20]}  f5 {[%clk 0:14:55]} 44. Bg5 {[%clk 0:04:21]}  Re5 {[%clk 0:14:57]} 45. Bf4 {[%clk 0:03:04]}  R5e7 {[%clk 0:14:25]} 46. Bg5 {[%clk 0:02:43]}  Re5 {[%clk 0:14:31]} 47. Bf4 {[%clk 0:02:03]}  R5e7 {[%clk 0:14:20]} 48. Bg5 {[%clk 0:02:02]} 1/2-1/2


[Site "http://www.chessbomb.com"]

[Event "Meltwater Champions Chess Tour 2022: Chessable Masters | Prelims"]
[White "Hansen, Eric"]
[Black "Anton Guijarro, David"]
[WhiteFideId "2606771"]
[BlackFideId "2285525"]
[WhiteElo "2579"]
[BlackElo "2633"]
[Result "1-0"]
[Round "13"]
[TimeControl "900+10"]
[Date "2022.05.22"]
[WhiteClock "0:01:14"]
[BlackClock "0:00:45"]

1. e4 {[%clk 0:15:20]}  e5 {[%clk 0:15:20]} 2. Nf3 {[%clk 0:15:28]}  Nc6 {[%clk 0:15:23]} 3. Bb5 {[%clk 0:15:34]}  a6 {[%clk 0:15:19]} 4. Ba4 {[%clk 0:15:41]}  Nf6 {[%clk 0:15:25]} 5. d3 {[%clk 0:15:47]}  Bc5 {[%clk 0:15:31]} 6. O-O {[%clk 0:15:48]}  d6 {[%clk 0:15:27]} 7. c3 {[%clk 0:15:49]}  Ba7 {[%clk 0:15:23]} 8. Re1 {[%clk 0:14:46]}  O-O {[%clk 0:15:28]} 9. h3 {[%clk 0:13:29]}  h6 {[%clk 0:15:29]} 10. Bxc6 {[%clk 0:12:32]}  bxc6 {[%clk 0:15:36]} 11. Be3 {[%clk 0:12:41]}  Bxe3 {[%clk 0:15:16]} 12. Rxe3 {[%clk 0:12:49]}  Rb8 {[%clk 0:13:58]} 13. b3 {[%clk 0:12:54]}  Re8 {[%clk 0:13:09]} 14. Na3 {[%clk 0:07:43]}  c5 {[%clk 0:12:14]} 15. Nc4 {[%clk 0:07:28]}  Be6 {[%clk 0:11:54]} 16. Ncd2 {[%clk 0:07:36]}  Bd7 {[%clk 0:10:38]} 17. Rc1 {[%clk 0:07:04]}  g6 {[%clk 0:05:20]} 18. d4 {[%clk 0:06:48]}  cxd4 {[%clk 0:05:24]} 19. cxd4 {[%clk 0:06:57]}  exd4 {[%clk 0:05:32]} 20. Nxd4 {[%clk 0:07:07]}  Rb4 {[%clk 0:04:46]} 21. N4f3 {[%clk 0:05:27]}  Rb5 {[%clk 0:04:29]} 22. Qc2 {[%clk 0:03:43]}  Rc5 {[%clk 0:04:23]} 23. Qb2 {[%clk 0:03:27]}  Rxc1+ {[%clk 0:04:18]} 24. Qxc1 {[%clk 0:03:37]}  Nh5 {[%clk 0:04:20]} 25. e5 {[%clk 0:02:57]}  Nf4 {[%clk 0:03:48]} 26. Qc4 {[%clk 0:02:55]}  Ne6 {[%clk 0:01:38]} 27. exd6 {[%clk 0:02:57]}  Bb5 {[%clk 0:01:27]} 28. dxc7 {[%clk 0:03:05]}  Nxc7 {[%clk 0:01:36]} 29. Rxe8+ {[%clk 0:02:56]}  Nxe8 {[%clk 0:01:45]} 30. Qc3 {[%clk 0:02:46]}  Nf6 {[%clk 0:01:47]} 31. a4 {[%clk 0:02:51]}  Be2 {[%clk 0:01:50]} 32. Nd4 {[%clk 0:02:50]}  Bd1 {[%clk 0:01:58]} 33. Nc4 {[%clk 0:02:21]}  Ne4 {[%clk 0:01:40]} 34. Qe3 {[%clk 0:02:24]}  Nd6 {[%clk 0:00:39]} 35. Ne5 {[%clk 0:01:45]}  Qg5 {[%clk 0:00:40]} 36. Qxg5 {[%clk 0:00:59]}  hxg5 {[%clk 0:00:49]} 37. Kf1 {[%clk 0:01:09]}  Nf5 {[%clk 0:00:42]} 38. Nec6 {[%clk 0:01:04]}  g4 {[%clk 0:00:33]} 39. Ke1 {[%clk 0:00:44]}  gxh3 {[%clk 0:00:34]} 40. gxh3 {[%clk 0:00:53]}  Bh5 {[%clk 0:00:27]} 41. Nxf5 {[%clk 0:00:43]}  gxf5 {[%clk 0:00:37]} 42. Nb8 {[%clk 0:00:52]}  a5 {[%clk 0:00:33]} 43. Nc6 {[%clk 0:01:00]}  Bf3 {[%clk 0:00:38]} 44. Nxa5 {[%clk 0:01:07]}  Bd5 {[%clk 0:00:45]} 45. Nc4 {[%clk 0:01:14]} 1-0


[Site "http://www.chessbomb.com"]

[Event "Meltwater Champions Chess Tour 2022: Chessable Masters | Prelims"]
[White "Mamedyarov, Shakhriyar"]
[Black "Jones, Gawain C B"]
[WhiteFideId "13401319"]
[BlackFideId "409561"]
[WhiteElo "2699"]
[BlackElo "2630"]
[Result "1/2-1/2"]
[Round "13"]
[TimeControl "900+10"]
[Date "2022.05.22"]
[WhiteClock "0:01:27"]
[BlackClock "0:00:45"]

1. d4 {[%clk 0:15:20]}  Nf6 {[%clk 0:15:20]} 2. c4 {[%clk 0:15:28]}  g6 {[%clk 0:15:29]} 3. g3 {[%clk 0:15:30]}  Bg7 {[%clk 0:15:37]} 4. Bg2 {[%clk 0:15:38]}  O-O {[%clk 0:15:46]} 5. Nc3 {[%clk 0:15:46]}  d6 {[%clk 0:15:55]} 6. Nf3 {[%clk 0:15:53]}  c5 {[%clk 0:16:04]} 7. O-O {[%clk 0:15:58]}  Nc6 {[%clk 0:16:13]} 8. dxc5 {[%clk 0:16:04]}  dxc5 {[%clk 0:16:22]} 9. Bf4 {[%clk 0:16:14]}  Nh5 {[%clk 0:16:06]} 10. Be3 {[%clk 0:16:13]}  b6 {[%clk 0:16:15]} 11. Qc1 {[%clk 0:16:19]}  Bb7 {[%clk 0:16:21]} 12. Bh6 {[%clk 0:16:24]}  Qe8 {[%clk 0:16:28]} 13. g4 {[%clk 0:16:26]}  Nf6 {[%clk 0:16:10]} 14. h3 {[%clk 0:16:35]}  Rd8 {[%clk 0:15:51]} 15. Qe3 {[%clk 0:16:41]}  Nd4 {[%clk 0:14:38]} 16. Bxg7 {[%clk 0:16:24]}  Kxg7 {[%clk 0:14:12]} 17. Qe5 {[%clk 0:16:00]}  Nc6 {[%clk 0:12:07]} 18. Qg3 {[%clk 0:16:03]}  Rd7 {[%clk 0:10:50]} 19. Rad1 {[%clk 0:14:42]}  Rxd1 {[%clk 0:10:20]} 20. Rxd1 {[%clk 0:14:48]}  Qb8 {[%clk 0:10:28]} 21. g5 {[%clk 0:13:39]}  Nh5 {[%clk 0:10:22]} 22. Qxb8 {[%clk 0:13:46]}  Rxb8 {[%clk 0:10:27]} 23. e3 {[%clk 0:13:45]}  Kf8 {[%clk 0:09:32]} 24. b3 {[%clk 0:11:43]}  Ng7 {[%clk 0:09:24]} 25. Nb5 {[%clk 0:11:40]}  Ne6 {[%clk 0:08:58]} 26. h4 {[%clk 0:11:41]}  Rd8 {[%clk 0:05:51]} 27. Rxd8+ {[%clk 0:11:31]}  Nexd8 {[%clk 0:05:59]} 28. Ne1 {[%clk 0:11:10]}  Ke8 {[%clk 0:05:59]} 29. f4 {[%clk 0:11:08]}  Kd7 {[%clk 0:05:53]} 30. Nd3 {[%clk 0:11:04]}  f6 {[%clk 0:05:45]} 31. Kf2 {[%clk 0:10:57]}  Ba6 {[%clk 0:05:09]} 32. Bh3+ {[%clk 0:10:24]}  f5 {[%clk 0:05:08]} 33. Nc3 {[%clk 0:10:32]}  e6 {[%clk 0:05:12]} 34. h5 {[%clk 0:10:13]}  Nf7 {[%clk 0:04:48]} 35. Bg2 {[%clk 0:09:15]}  Nb4 {[%clk 0:04:29]} 36. Nxb4 {[%clk 0:08:02]}  cxb4 {[%clk 0:04:38]} 37. Ne2 {[%clk 0:07:16]}  gxh5 {[%clk 0:03:34]} 38. Kg3 {[%clk 0:07:22]}  Bc8 {[%clk 0:02:50]} 39. Kh4 {[%clk 0:07:24]}  Ke7 {[%clk 0:02:42]} 40. Kxh5 {[%clk 0:06:57]}  Bd7 {[%clk 0:02:46]} 41. Nd4 {[%clk 0:06:43]}  a5 {[%clk 0:02:45]} 42. e4 {[%clk 0:06:07]}  Nh8 {[%clk 0:01:42]} 43. exf5 {[%clk 0:05:39]}  exf5 {[%clk 0:01:49]} 44. Kh6 {[%clk 0:04:50]}  Ng6 {[%clk 0:01:57]} 45. Kxh7 {[%clk 0:03:01]}  Nxf4 {[%clk 0:02:04]} 46. g6 {[%clk 0:03:11]}  Kd6 {[%clk 0:01:57]} 47. Bf3 {[%clk 0:02:26]}  Nxg6 {[%clk 0:01:45]} 48. Kxg6 {[%clk 0:02:36]}  Ke5 {[%clk 0:01:54]} 49. Ne2 {[%clk 0:02:24]}  f4 {[%clk 0:01:17]} 50. Kg5 {[%clk 0:02:19]}  Bf5 {[%clk 0:01:23]} 51. Nxf4 {[%clk 0:02:18]}  Bb1 {[%clk 0:01:30]} 52. Bd1 {[%clk 0:01:17]}  Kd4 {[%clk 0:01:07]} 53. Ne6+ {[%clk 0:00:14]}  Kc3 {[%clk 0:01:15]} 54. Nc7 {[%clk 0:00:21]}  Bxa2 {[%clk 0:01:07]} 55. Nd5+ {[%clk 0:00:27]}  Kd2 {[%clk 0:00:56]} 56. Nxb6 {[%clk 0:00:36]}  Kxd1 {[%clk 0:01:00]} 57. c5 {[%clk 0:00:36]}  Bxb3 {[%clk 0:00:56]} 58. c6 {[%clk 0:00:33]}  Be6 {[%clk 0:00:57]} 59. Kf6 {[%clk 0:00:37]}  Bh3 {[%clk 0:00:49]} 60. Nc4 {[%clk 0:00:31]}  b3 {[%clk 0:00:50]} 61. Ke5 {[%clk 0:00:24]}  Kc1 {[%clk 0:00:20]} 62. Kd4 {[%clk 0:00:31]}  b2 {[%clk 0:00:16]} 63. Na3 {[%clk 0:00:40]}  a4 {[%clk 0:00:11]} 64. Kc3 {[%clk 0:00:39]}  Bg2 {[%clk 0:00:15]} 65. c7 {[%clk 0:00:48]}  Bh3 {[%clk 0:00:24]} 66. Kb4 {[%clk 0:00:54]}  Bd7 {[%clk 0:00:33]} 67. Kc3 {[%clk 0:01:01]}  b1=N+ {[%clk 0:00:19]} 68. Nxb1 {[%clk 0:01:08]}  Kxb1 {[%clk 0:00:28]} 69. Kb4 {[%clk 0:01:15]}  Kb2 {[%clk 0:00:36]} 70. c8=Q {[%clk 0:01:18]}  Bxc8 {[%clk 0:00:45]} 71. Kxa4 {[%clk 0:01:27]} 1/2-1/2


[Site "http://www.chessbomb.com"]

[Event "Meltwater Champions Chess Tour 2022: Chessable Masters | Prelims"]
[White "Van Foreest, Jorden"]
[Black "Harikrishna, Pentala"]
[WhiteFideId "1039784"]
[BlackFideId "5007003"]
[WhiteElo "2645"]
[BlackElo "2624"]
[Result "1-0"]
[Round "13"]
[TimeControl "900+10"]
[Date "2022.05.22"]
[WhiteClock "0:00:34"]
[BlackClock "0:00:01"]

1. e4 {[%clk 0:15:20]}  e5 {[%clk 0:15:20]} 2. Nf3 {[%clk 0:15:27]}  Nc6 {[%clk 0:15:27]} 3. Bb5 {[%clk 0:15:34]}  a6 {[%clk 0:15:34]} 4. Ba4 {[%clk 0:15:42]}  Nf6 {[%clk 0:15:41]} 5. O-O {[%clk 0:15:50]}  Be7 {[%clk 0:15:45]} 6. Re1 {[%clk 0:15:57]}  b5 {[%clk 0:15:46]} 7. Bb3 {[%clk 0:16:03]}  O-O {[%clk 0:15:53]} 8. d3 {[%clk 0:15:55]}  d6 {[%clk 0:15:22]} 9. c3 {[%clk 0:15:51]}  Na5 {[%clk 0:14:03]} 10. Bc2 {[%clk 0:15:55]}  c5 {[%clk 0:14:08]} 11. Nbd2 {[%clk 0:15:49]}  Nc6 {[%clk 0:14:07]} 12. h3 {[%clk 0:15:48]}  Re8 {[%clk 0:14:09]} 13. a4 {[%clk 0:15:35]}  Bb7 {[%clk 0:14:10]} 14. Nf1 {[%clk 0:15:30]}  h6 {[%clk 0:13:53]} 15. Ne3 {[%clk 0:14:31]}  Bf8 {[%clk 0:13:53]} 16. Bb3 {[%clk 0:14:35]}  Ne7 {[%clk 0:13:11]} 17. Bd2 {[%clk 0:13:22]}  Ng6 {[%clk 0:12:59]} 18. axb5 {[%clk 0:13:16]}  axb5 {[%clk 0:13:07]} 19. Rxa8 {[%clk 0:13:25]}  Qxa8 {[%clk 0:12:56]} 20. c4 {[%clk 0:13:15]}  Bc6 {[%clk 0:11:31]} 21. cxb5 {[%clk 0:13:14]}  Bxb5 {[%clk 0:11:38]} 22. Bxf7+ {[%clk 0:12:52]}  Kxf7 {[%clk 0:11:46]} 23. Qb3+ {[%clk 0:13:00]}  d5 {[%clk 0:11:21]} 24. Qxb5 {[%clk 0:13:08]}  Rb8 {[%clk 0:11:30]} 25. Qa5 {[%clk 0:13:17]}  Qxa5 {[%clk 0:08:25]} 26. Bxa5 {[%clk 0:13:25]}  c4 {[%clk 0:08:31]} 27. Nxd5 {[%clk 0:08:09]}  Nxd5 {[%clk 0:07:42]} 28. exd5 {[%clk 0:08:17]}  cxd3 {[%clk 0:07:12]} 29. Bc3 {[%clk 0:08:09]}  Bb4 {[%clk 0:05:41]} 30. g3 {[%clk 0:04:50]}  Rb5 {[%clk 0:05:10]} 31. h4 {[%clk 0:04:00]}  Bxc3 {[%clk 0:05:07]} 32. bxc3 {[%clk 0:04:08]}  Rxd5 {[%clk 0:05:16]} 33. h5 {[%clk 0:04:12]}  Ne7 {[%clk 0:05:25]} 34. Rxe5 {[%clk 0:03:01]}  Kf6 {[%clk 0:04:58]} 35. Re1 {[%clk 0:02:42]}  Rxh5 {[%clk 0:04:37]} 36. Rd1 {[%clk 0:02:51]}  Rd5 {[%clk 0:04:39]} 37. Nd4 {[%clk 0:01:54]}  Nf5 {[%clk 0:04:13]} 38. Rxd3 {[%clk 0:02:02]}  Nxd4 {[%clk 0:04:22]} 39. cxd4 {[%clk 0:02:11]}  Kf5 {[%clk 0:04:12]} 40. f3 {[%clk 0:01:27]}  h5 {[%clk 0:03:16]} 41. Kf2 {[%clk 0:01:36]}  Rd8 {[%clk 0:01:37]} 42. d5 {[%clk 0:01:44]}  Ke5 {[%clk 0:01:46]} 43. f4+ {[%clk 0:01:52]}  Kd6 {[%clk 0:01:39]} 44. Kf3 {[%clk 0:00:45]}  Re8 {[%clk 0:01:02]} 45. Rd1 {[%clk 0:00:53]}  g6 {[%clk 0:01:00]} 46. Kg2 {[%clk 0:00:27]}  g5 {[%clk 0:00:34]} 47. fxg5 {[%clk 0:00:16]}  Rg8 {[%clk 0:00:42]} 48. Kh3 {[%clk 0:00:20]}  Rxg5 {[%clk 0:00:51]} 49. Rd4 {[%clk 0:00:27]}  Ke5 {[%clk 0:00:55]} 50. Kh4 {[%clk 0:00:30]}  Rf5 {[%clk 0:00:01]} 51. Rf4 {[%clk 0:00:34]} 1-0


[Site "http://www.chessbomb.com"]